Cogmind - Beta 13 @@@ ROGUE MODE // 2024.04.30 @ 07:51:08 Player: BionicBot Result: Destroyed by G-47 Trooper with Particle Gun Performance ------------- Evolutions (2) 1000 Regions Visited (3) 600 Robots Destroyed (93) 465 Value Destroyed (1978) 1978 Prototype IDs (3) 60 Alien Tech Used (0) 0 Bonus (65) 65 TOTAL SCORE: 4168 Bonus ------- High Alert Combat Kills 65 Cogmind --------- Core Integrity 0/550 Matter 300/300 Energy 275/275 System Corruption 0% Temperature Cool (18) Movement Core (500) Ox9 Location -8/Materials Parts ------- > --- POWER (1) -------- Deuterium Engine > --- PROPULSION (4) --- (None) > --- UTILITY (3) ------ Large Storage Unit Melee Analysis Suite > --- WEAPON (3) ------- (None) > --- INVENTORY (15) --- Light Treads Light Treads Aluminum Leg Aluminum Leg Improved Carbon-fiber Leg Improved Light Armor Plating Improved Light Armor Plating Improved Light Armor Plating Reflective Plating Improved Grenade Launcher Improved Grenade Launcher Datajack Katana Katana Peak State ------------ > --- POWER ------------ Improved Deuterium Engine > --- PROPULSION ------- Improved Treads Improved Treads Improved Treads Advanced Treads > --- UTILITY ---------- Huge Storage Unit Melee Analysis Suite Improved Light Armor Plating > --- WEAPON ----------- Katana Katana Katana > --- INVENTORY -------- Light Ion Engine Nuclear Core Light Nuclear Core Aluminum Leg Aluminum Leg Improved Carbon-fiber Leg Improved Heat Sink Small Battery Transport Network Coupler Improved Light Armor Plating Improved Light Armor Plating Improved Light Armor Plating Improved Grenade Launcher Improved Grenade Launcher Datajack Katana Katana [Rating: 33] Favorites ----------- Power Ion Engine Engine Ion Engine Power Core Light Nuclear Core Propulsion Improved Treads Treads Improved Treads Utility Medium Storage Unit Device Seismic Detector Storage Medium Storage Unit Processor Melee Analysis Suite Protection Improved Light Armor Plating Weapon Katana Ballistic Gun Heavy Assault Rifle Ballistic Cannon Light Cannon Slashing Weapon Katana Build | -11 -10 -9 -8 ------- Run | Yrd Mat Mat Mat Slots Evolved 4 | . . 2 2 Power . | . . . . Propulsion 2 | . . 2 . Utility 1 | . . . 1 Weapon 1 | . . . 1 Parts Attached 51 | 10 5 24 12 Power 7 | 1 . 4 2 Engine 6 | 1 . 3 2 Core 1 | . . 1 . Reactor . | . . . . Propulsion 18 | 2 . 12 4 Treads 18 | 2 . 12 4 Leg . | . . . . Wheel . | . . . . Hover . | . . . . Flight . | . . . . Utility 11 | 3 2 1 5 Device 1 | 1 . . . Storage 7 | 2 2 1 2 Processor 1 | . . . 1 Hackware . | . . . . Protection 2 | . . . 2 Artifact . | . . . . Weapon 15 | 4 3 7 1 Energy Gun . | . . . . Energy Cannon . | . . . . Ballistic Gun 9 | 4 2 3 . Ballistic Cannon 3 | . 1 2 . Launcher . | . . . . Special Weapon . | . . . . Impact Weapon . | . . . . Slashing Weapon 3 | . . 2 1 Piercing Weapon . | . . . . Special Melee Weapon . | . . . . Unidentified Prototypes . | . . . . Parts Lost 14 | . 2 2 10 Power 3 | . . 2 1 Propulsion 5 | . . . 5 Utility 1 | . . . 1 Weapon 5 | . 2 . 3 Highest Loss Streak 9 | . 1 1 9 To Critical Strikes . | . . . . Average Slot Usage (%) 98 | . 99 98 97 Engine 9 | . 14 7 8 Core 1 | . . 3 . Treads 37 | . 28 43 33 Storage 18 | . 28 21 9 Processor 2 | . . . 6 Protection 3 | . . . 10 Ballistic Gun 7 | . 20 7 . Ballistic Cannon 4 | . 7 7 . Slashing Weapon 12 | . . 6 26 Naked Turns . | . . . . Heaviest Build 102 | 15 23 25 102 Greatest Support 92 | 40 40 92 92 Greatest Overweight (x) 10 | . . 1 10 Average Overweight (x) . | . . . . Largest Inventory Capacity 25 | 8 10 10 25 Average Capacity 13 | 6 9 10 19 Most Carried 18 | 4 10 10 18 Average Carried 10 | 1 8 9 14 Final Capacity 15 | 8 10 10 15 Final Carried 14 | 3 10 10 14 Class Distribution -------------------- 74% | Mutant 25% | Gladiator Dominant Class ---------------- Mutant | -10/Materials Mutant | -9/Materials Gladiator | -8/Materials Resources | -11 -10 -9 -8 ----------- Run | Yrd Mat Mat Mat Matter Collected 2026 | 372 373 1181 100 Remotely . | . . . . Salvage Created 2960 | 220 556 1315 869 Parts 207 | 14 46 88 59 Haulers Intercepted 5 | . 1 2 2 Recyclers Shooed 4 | . 1 2 1 Parts Field Recycled . | . . . . Retrieved Matter . | . . . . Parts Self-Destructed . | . . . . Prevented . | . . . . Kills | -11 -10 -9 -8 ------- Run | Yrd Mat Mat Mat Combat Hostiles Destroyed 57 | . 15 29 13 Melee 17 | . . 4 13 Guns 25 | . 12 13 . Cannons 15 | . 3 12 . Classes Destroyed 13 | 3 4 3 3 Worker 10 | 2 2 1 5 Builder 3 | . . 2 1 Tunneler 5 | 4 . 1 . Hauler 5 | . 1 2 2 Recycler 5 | 1 1 2 1 Watcher 8 | . 2 4 2 Swarmer 20 | . 9 8 3 Grunt 18 | . 6 10 2 Duelist 1 | . . 1 . Protector 1 | . . . 1 Sentry 14 | . . 10 4 Specialist 2 | . . . 2 Hunter 1 | . . . 1 Best Kill Streak 6 | 3 6 6 4 Combat Bots Only 6 | . 6 5 3 Max Kills in Single Turn 2 | 1 1 2 1 Gunslinging . | . . . . Exploded . | . . . . Melee 1 | . . 1 1 Uniques/NPCs Destroyed . | . . . . Combat | -11 -10 -9 -8 -------- Run | Yrd Mat Mat Mat Hostile Shots Fired 322 | . 69 131 122 Missed 87 | . 19 40 28 Damage Taken 3584 | . 574 1164 1846 Core 788 | . 83 146 559 Absorbed by Shields . | . . . . Regen/Repaired (Parts) 186 | . . 186 . Core Remaining (%) 76 | 100 66 63 . Volleys Fired 154 | 13 56 85 . Largest 2 | 2 2 2 . Hottest 58 | 40 55 58 . Shots Fired 306 | 26 109 171 . Gun 204 | 26 90 88 . Cannon 102 | . 19 83 . Launcher . | . . . . Special . | . . . . Kinetic 306 | 26 109 171 . Thermal . | . . . . Explosive . | . . . . Electromagnetic . | . . . . Robot Hit Streak 18 | 13 7 18 . Robot Miss Streak 4 | 1 4 4 . Penetration Max . | . . . . Secondary Targets 1 | . 1 . . Max Gunslinging Chain 1 | . 1 . . Shots Hit Robots 264 | 20 59 123 62 Core Hits 112 | 8 29 51 24 Critical Kills . | . . . . Critical Parts Destroyed 1 | 1 . . . Critical Strikes 12 | 1 3 6 2 Destroy 1 | 1 . . . Blast 6 | . 3 3 . Sever 5 | . . 3 2 Melee Attacks 100 | . . 16 84 Impact . | . . . . Slashing 100 | . . 16 84 Piercing . | . . . . Sneak Attacks 12 | . . 1 11 Combat Hostiles . | . . . . Follow-up Attacks 12 | . . 1 11 Damage Inflicted 5430 | 224 748 2236 2222 Guns 1676 | 224 566 886 . Cannons 1088 | . 182 906 . Explosions . | . . . . Melee 2662 | . . 440 2222 Ramming 4 | . . 4 . Kinetic 2764 | 224 748 1792 . Thermal . | . . . . Explosive . | . . . . Electromagnetic . | . . . . Impact . | . . . . Slashing 2662 | . . 440 2222 Piercing . | . . . . Highest Corruption 3 | . . 3 . Average Corruption 2 | . . 2 . Corruption Purged . | . . . . Corruption Blocked . | . . . . Effects 30 | . . 30 . Message Errors 5 | . . 5 . Matter Fused 9 | . . 9 . Heat Flow Errors 6 | . . 6 . Energy Discharges 3 | . . 3 . Data Loss (minor) 5 | . . 5 . Data Loss (major) 1 | . . 1 . Misfires 1 | . . 1 . Overload Shots . | . . . . Overflow Damage 117 | . . . 117 Projectiles . | . . . . Explosions . | . . . . Melee 117 | . . . 117 Knockbacks 7 | . 1 6 . Impact . | . . . . Kinetic 7 | . 1 6 . Secondary . | . . . . Self-Inflicted Damage . | . . . . Shots . | . . . . Rammed . | . . . . Targets Rammed 1 | . . 1 . Kicked . | . . . . Crushed 1 | . . 1 . Highest Temperature 264 | . 28 264 11 Average Temperature 54 | . 7 72 7 Received Heat Transfer 894 | . 126 309 459 Siege Activations . | . . . . Robots Corrupted . | . . . . Combat Hostiles . | . . . . Parts Fried . | . . . . Impact Corruptions . | . . . . Robots Melted . | . . . . Combat Hostiles . | . . . . Parts Melted . | . . . . Heat Transferred . | . . . . Parts Sabotaged . | . . . . Parts Stolen . | . . . . Parts Stripped . | . . . . Power Chain Reactions . | . . . . Alert | -11 -10 -9 -8 ------- Run | Yrd Mat Mat Mat Peak Influence 471 | 35 286 471 395 Initial 198 | . 22 44 198 Average 199 | 16 141 240 199 Maximum Alert Level 2 | . 1 2 1 Low Security (%) 56 | 100 67 40 65 Level 1 31 | . 32 32 34 Level 2 11 | . . 27 . Level 3 . | . . . . Level 4 . | . . . . Level 5 . | . . . . High Security . | . . . . Max Security . | . . . . Squads Dispatched 14 | . 3 3 8 Investigation 6 | . 2 3 1 Extermination . | . . . . Reinforcement 6 | . 1 . 5 Assault 1 | . . . 1 Garrison 1 | . . . 1 Intercept . | . . . . Searches Triggered . | . . . . Construction Impeded . | . . . . Haulers Reinforced . | . . . . Active Scanning Responses . | . . . . Cargo Convoy Interrupts . | . . . . Stealth | -11 -10 -9 -8 --------- Run | Yrd Mat Mat Mat Distress Signals 5 | . 1 3 1 Communications Jammed . | . . . . Distress Signals . | . . . . Times Spotted 84 | . 23 35 26 Peak Tracking Total 5 | . 5 5 4 Tactical Retreats 5 | . 1 3 1 Traps | -11 -10 -9 -8 ------- Run | Yrd Mat Mat Mat Traps Triggered 4 | . 1 3 . Indirectly . | . . . . Trap Hack Attempts . | . . . . Triggered . | . . . . Disarmed 4 | . . 4 . Reprogrammed . | . . . . Reused . | . . . . Traps Extracted . | . . . . Installed . | . . . . Triggered . | . . . . Machines | -11 -10 -9 -8 ---------- Run | Yrd Mat Mat Mat Machines Disabled . | . . . . Max in Single Turn . | . . . . Garrison Access 1 | . . . 1 Machines Repaired . | . . . . Machines Dismantled . | . . . . Machines Sabotaged . | . . . . Overloaded Fab Kills . | . . . . Hacking | -11 -10 -9 -8 --------- Run | Yrd Mat Mat Mat Machines Accessed 15 | . 4 10 1 Terminals 10 | . 4 6 . Fabricators . | . . . . Repair Stations 2 | . . 2 . Recycling Units . | . . . . Scanalyzers 3 | . . 2 1 Garrison Access . | . . . . Total Hacks 64 | . 11 41 12 Successful 38 | . 5 24 9 Failed 26 | . 6 17 3 Catastrophic 3 | . 1 2 . Database Lockouts . | . . . . Manual . | . . . . Terminals 29 | . 11 18 . Fabricators . | . . . . Repair Stations 10 | . . 10 . Recycling Units . | . . . . Scanalyzers 25 | . . 13 12 Garrison Access . | . . . . Terminal Hacks 12 | . 5 7 . Prototype ID Bank 2 | . 2 . . Scanalyzer Index 1 | . . 1 . Locate Traps 3 | . 1 2 . Disarm Traps 1 | . . 1 . Maintenance Status 1 | . 1 . . Registered Components 1 | . . 1 . Zone Layout 3 | . 1 2 . Fabricator Hacks . | . . . . Repair Station Hacks 7 | . . 7 . Scan Component 4 | . . 4 . Repair 3 | . . 3 . Recycling Unit Hacks . | . . . . Scanalyzer 19 | . . 10 9 Insert Component 9 | . . 4 5 Analyze 10 | . . 6 4 Garrison Access Hacks . | . . . . Unauthorized Hacks . | . . . . Terminals . | . . . . Fabricators . | . . . . Repair Stations . | . . . . Recycling Units . | . . . . Scanalyzers . | . . . . Garrison Access . | . . . . Data Cores Recovered . | . . . . Used . | . . . . Hacking Detections 12 | . 3 8 1 Full Trace Events 4 | . 2 2 . Feedback Events . | . . . . Feedback Blocked . | . . . . Robot Schematics Acquired . | . . . . Robots Built . | . . . . Authchips . | . . . . Time . | . . . . Total Robot Build Rating . | . . . . Part Schematics Acquired 8 | . . 4 4 Parts Built . | . . . . Authchips . | . . . . Time . | . . . . Total Part Build Rating . | . . . . Parts Repaired 3 | . . 3 . Time 94 | . . 94 . Parts Recycled . | . . . . Recycled Matter . | . . . . Retrieved Matter . | . . . . Retrieved Components . | . . . . Parts Scanalyzed 8 | . . 4 4 Part Schematics Acquired 8 | . . 4 4 Parts Damaged 1 | . . . 1 Bothacking | -11 -10 -9 -8 ------------ Run | Yrd Mat Mat Mat Used RIF Installer . | . . . . Robots Hacked . | . . . . Non-combat . | . . . . Combat . | . . . . Robot Hacks Applied . | . . . . Relay Couplers Released 3 | . . . 3 Machine Destruction 3 | . . . 3 Fabnet Peak Effective % . | . . . . Robots Rewired . | . . . . Allies Hacked . | . . . . Hacks Repelled . | . . . . Allies | -11 -10 -9 -8 -------- Run | Yrd Mat Mat Mat Total Allies . | . . . . Largest Group . | . . . . Highest-Rated Group . | . . . . Highest-Rated Ally . | . . . . Total Orders . | . . . . Ally Attacks . | . . . . Total Damage . | . . . . Kills . | . . . . Allies Corrupted . | . . . . Allies Melted . | . . . . Intel | -11 -10 -9 -8 ------- Run | Yrd Mat Mat Mat Robot Analysis Total . | . . . . Derelict Logs Recovered . | . . . . Drone Launches . | . . . . Drone Recoveries . | . . . . Exploration | -11 -10 -9 -8 ------------- Run | Yrd Mat Mat Mat Turns Passed 5191 | 197 1006 2248 1740 Spaces Moved 2364 | 88 511 1083 682 Core 8 | 4 . . 4 Treads 2356 | 84 511 1083 678 Legs . | . . . . Wheels . | . . . . Hover . | . . . . Flight . | . . . . Fastest Speed 50 | 50 160 160 155 Average Speed 172 | 155 160 160 204 Slowest Speed 550 | 160 160 240 550 Overloaded Moves . | . . . . Propulsion Burnouts . | . . . . Robots Hopped . | . . . . Cave-ins Triggered . | . . . . Exploration Rate (%) 54 | 6 81 82 47 Regions Visited 3 Branch Regions . Pre-discovered Areas . | . . . . Known Exits Taken . | . . . . Unknown Exits Taken 3 | 1 1 1 . Scrap Searched . | . . . . Spaces Dug . | . . . . Terrain Destroyed . | . . . . Melee . | . . . . Projectile . | . . . . AOE . | . . . . Terrain Rammed . | . . . . Walls Destroyed . | . . . . Machines Disabled . | . . . . Actions | -11 -10 -9 -8 --------- Run | Yrd Mat Mat Mat Total 3086 | 126 595 1423 942 Wait 290 | 1 5 141 143 Move 2361 | 87 510 1082 682 Hop . | . . . . Pick Up 83 | 11 13 37 22 Fast Attach 3 | . . 1 2 Attach 42 | 10 5 22 5 Detach 14 | 3 2 7 2 Swap 6 | . . 1 5 Drop 57 | 1 4 31 21 Fire 154 | 13 56 85 . Melee 75 | . . 15 60 Ram . | . . . . Kick . | . . . . Crush 1 | . . 1 . Escape Stasis . | . . . . Rewire . | . . . . Trap . | . . . . Miscellaneous . | . . . . Route ------- -11/Scrapyard -10/Materials (discovered 4 exits: *Mat x3 / [*Min]) -9/Materials (discovered 3 exits: *Mat x3) -8/Materials History --------- Turn | Location | Event 27 | -11/Scrapyard | Discovered new exit (range 15) 198 | -11/Scrapyard | Entered Materials 313 | -10/Materials | Build established: Mutant 621 | -10/Materials | Discovered new exit (range 9) 945 | -10/Materials | Discovered new exit (range 17) 1057 | -10/Materials | Discovered new exit (range 15) 1169 | -10/Materials | Discovered new exit (range 16) 1204 | -10/Materials | Entered another Materials area 1204 | -9/Materials | Evolved 2 slots: Propulsion x2 1555 | -9/Materials | Discovered new exit (range 8) 1763 | -9/Materials | Repaired Hvy. Assault Rifle 1801 | -9/Materials | Repaired Broken Lgt. Cannon 1878 | -9/Materials | Discovered new exit (range 16) 2562 | -9/Materials | Repaired Lgt. Cannon 2586 | -9/Materials | Discovered new exit (range 3) 3452 | -9/Materials | Entered another Materials area 3452 | -8/Materials | Evolved 2 slots: Utility x1, Weapon x1 3715 | -8/Materials | Garrison activated, responded to threat 3820 | -8/Materials | Met 7R-MNS 4176 | -8/Materials | Build established: Gladiator 5151 | -8/Materials | Core integrity fell below 50% 5185 | -8/Materials | Core integrity fell below 20% 5192 | -8/Materials | Destroyed by G-47 Trooper with Particle Gun Last Messages --------------- 05154_ Adv. Treads destroyed. 05154_ U-05 Engineer builds a Wall. 05156_ Katana follow-up attack on H-61 Shepherd. 05158_ Imp. Treads destroyed. 05159_ U-05 Engineer builds a Wall. 05164_ Penetrated by Slug. 05164_ Katana destroyed. 05169_ U-05 Engineer builds a Door. 05169_ Lgt. Treads destroyed. 05169_ Critical hit (Burn: +37). 05171_ U-05 Engineer builds a Wall. 05174_ Knocked back. 05178_ U-05 Engineer builds a Wall. 05179_ Slug penetrates Wall. 05183_ Critical hit (Burn: +37). 05183_ U-05 Engineer builds a Wall. 05184_ Katana destroyed. 05184_ Critical hit (Blast). 05189_ Katana destroyed. 05190_ U-05 Engineer builds a Door. Map ----- +----------------------------------------------------+ | % #########???????????????????????????????????? | | % !##???????????????????????????????????????? | | *!!!#???????????????????????????????????????? | | "" #???????????????????????????????????????? | | "" ! !#???????????????????????????????????????? | | "" !#???????????????????????????????????????? | | !##???????????????????????????????????????? | | ########????????????????????????????????????? | | "" #? #????????????????????????????????????? | | "" # """ #????????????????????????????????????? | | "" # """ [#????????????????????????????????????? | | + """ #????????????????????????????????????? | | # """ #?######?????????????????????????????? | | "" # #?# #?????????????????????????????? | | "" #?######?# #??????????????#??????????????? | | "" #????????# #?#######????? #??????????????? | | #????????# #? ! !#????? #??????????????? | | #????????# #? #???? ###????????????? | | #+######??????# = #?? "" #??? = ?????????????? | | *%= #??????# #?? S"" #?? %#??????????????? | | = """ #??????# #?? "" #? ##?????????????? | | """ ######## #?? !? a #?????????????? | | """ "# ###+######+### #?????????????? | | ## % % % g #?????????????? | | S """ ## % %tgH g % #?????????????? | | "" """ ## t % u @ #?????????????? | | "" """ ##! ##########+### #?????????????? | | #### ###???????% ]??? #?????????????? | | ########??# #???????# !// #?????###?????????????? | | ########??#%#???????# !/ #?????????????????????? | | + #??# #???????# !/ #?????????????????????? | | #### #??#%#???????" #?????????????????????? | | ???# #??#%#????#### #?????????????????????? | | #### !#??# #?### ##########?????????????????????? | | + #??#%#?# #?????????????????????????? | | #### % #??# #?#="" """ #?????????????????????????? | | ???# #### ### "T """ #?????????????????????????? | | #####+### #%"" """ #?????????????????????????? | | % % T" # #?????????????????????????? | | " + ! """ #?????????????????????????? | | % # """ #?????????????????????????? | | ####### #=[ """ #?????????????????????????? | | #?????#######[[ #?????????????????????????? | | #???????????##########?????????????????????????? | | ##?????????????????????????????????????????????? | | #?????????????????????????????????????????????? | | #?????????????????????????????????????????????? | | #?????????????????????????????????????????????? | | ]#?????????????????????????????????????????????? | | #?????????????????????????????????????????????? | +----------------------------------------------------+ Best States ------------- Heat Dissipation 31 Energy Generation 16 Energy Capacity 290 Matter Stores 500 Matter Capacity 500 Sight Range 16 Terrain Scan Density 10 Armor Coverage 300 Evasion (%) 40 Melee Accuracy 5 Recoil Reduction 4 Item Schematics ----------------- Imp. Grenade Launcher | -9/Materials | Scanalyzed Lgt. Treads | -9/Materials | Scanalyzed Katana | -9/Materials | Scanalyzed Imp. Light Armor Plating | -9/Materials | Scanalyzed Datajack | -8/Materials | Scanalyzed Nuclear Core | -8/Materials | Scanalyzed Transport Network Coupler | -8/Materials | Scanalyzed Imp. Carbon-fiber Leg | -8/Materials | Scanalyzed Robot Schematics ------------------ None Fabricated ------------ Nothing Alien Tech Used ----------------- None Achievements -------------- None Challenges ------------ None Game ------ Seed SpliceCoreFlakker Manual? 0 Play Time 00:59:57 Cumulative 12.2 hours Start 2024.04.29 @ 20:52:08 End 2024.04.30 @ 07:51:08 Sessions 3 Manual Loads 0 Difficulty Rogue Special Mode None Game No. 12 Rogue 12 Adventurer 0 Explorer 0 Win Type - Total 0 Types 0/0/0/0/0/0/0/0/0 Lore% 3 Gallery% 15 Achievement% 14 Wizard Run 0 Options --------- Layout 1 ASCII 0 Keyboard 1 Movement Numpad Keybinds 0 Fullscreen 2 Font 24/Smallcaps Map View 50x35 Zoom Use 0% Tactical HUD 1 Map Filters NONE Filters NONE Steam 1 RUN: 9a92f050-8a7e-491e-88f4-6a5b32f2dcc3